Workbook

Sheet Calculation
B2: Výpočet úspor AS-ECOshower
B3: Version 1.2
B4: Zadání | I4: 1
B6: Projekt | K6: 2
B8: Produkt | C8: AS-ECOshower pipe 15/1500mm | K8: 2
B10: Teplota sprchování | C10: 40 | G10: typischer Wert: 37 - 40°C | I10: 3
B12: Délky sprchování | C12: 10 | I12: 4
B14: Průtok | C14: 12.5 | G14: typischer Wert: 8…15 Liter /min | I14: 5
B16: Teplota studené vody | C16: 10 | G16: typischer Wert: 8 - 12 °C | I16: 6
B18: Teplota ohřívané vody | C18: 60
B20: Počet osob | C20: 4
B22: Počet sprchování / osoba a týden | C22: 5
B24: Účinnost plynového kotle na ohřev teplé vody (pokud přítomen) | C24: 0.7
B26: Cena plynu | C26: 1.5 | E26: 3
B28: Cena elektřiny | C28: 3.7 | E28: 1.5
B30: Délka provozu | C30: 25
B33: Zapojení | C33: na zdroj tepla a sprch. baterii (vyvážený průtok) | E33: =VLOOKUP(C33,Tabellen!$K$6:$L$8,2,FALSE) -> 0
B35: Obvyklá ztráta tepla ve sprše | C35: 0.2 | E35: odparem, akumulací dlažby, ...
B37: Výsledky - spotřeba
B39: Objem | C39: =C20*E39*52*C22 -> 130000 | E39: =C14*C12 -> 125 | G39: typischer Wert: 35…80 Liter / Duschvorgang
B41: Užitné teplo | C41: =IF(C10>40,0.001*C39*Data!C22*(40-C16),0.001*C39*Data!C22*(C10-C16)) -> 4535.7
B43: Spotřeba plynu pro ohřev teplé vody | C43: =C41/C24 -> 6479.571429 | E43: =C41/C24/10 -> 647.9571429
B45: Cena sprchování - plyn | C45: =C43*C26 -> 9719.357143
B47: Cena sprchování - elektřina | C47: =C41*C28 -> 16782.09
B49: Výsledky - úspora | C49: za rok | E49: ="za "&C30&" let" -> za 25 let
B51: Úspora relativní | C51: =Data!F19*(1-C35)*(1-E33) -> 0.4184
B53: Úspora užitné energii | C53: =IFERROR($C$41*C51,"keine Werte verfügbar") -> 1897.73688 | E53: =IFERROR(C53*$C$30,"-") -> 47443.422
B55: Úspora plynu | C55: =IFERROR($C$43*C51,"keine Werte verfügbar") -> 2711.052686 | E55: =IFERROR(C55*$C$30,"-") -> 67776.31714
B57: Úspora „Kč“ za plyn | C57: =IFERROR(C55*$C$26,"keine Werte verfügbar") -> 4066.579029 | E57: =IFERROR(SUMPRODUCT(C57*(1+E26/100)^ROW(INDIRECT("1:"&C30))),"-") -> 152712.4141
B59: Úspora „Kč“ za elektřinu | C59: =IFERROR(C53*$C$28,"keine Werte verfügbar") -> 7021.626456 | E59: =IFERROR(SUMPRODUCT(C59*(1+E28/100)^ROW(INDIRECT("1:"&$C$30))),"-") -> 214257.6917
B61: CO2-úspora elektřiny | C61: =IFERROR(C53*Data!C23,"keine Werte verfügbar") -> 1920.509723 | E61: =IFERROR(C61*$C$30,"-") -> 48012.74306
B63: CO2-úspora plynu | C63: =IFERROR(C55*Data!C24,"keine Werte verfügbar") -> 536.7884318 | E63: =IFERROR(C63*$C$30,"-") -> 13419.71079
B65: Tento výpočetní nástroj byl naprogramován dle nejlepšího vědomí a svědomí. Měl by být poskytnut přibližný údaj o úsporech našich produktů AS-ECOshower. Účinnosti jsou stanoveny nezávislým institutem. Červené hodnoty v datovém listu byly interpolovány.

Sheet Data
A1: Účinnost podle přílohy B normy NEN 7120: 2011 / C2: 2011, zkouška dle KIWA
A2: Červené označené hodnoty jsou vypočteny
C3: Objemový průtok
C4: 5.8 | D4: 9.2 | E4: 12.5 | F4: 15 | J4: 5.8 | K4: 9.2 | L4: 12.5 | M4: 15
B5: AS-ECOshower pipe 15/1500mm | C5: 0.6 | D5: 0.568 | E5: 0.523 | F5: 0.48 | G5: =VLOOKUP(Calculation!C8,Data!B5:I15,8,0) -> 5 | I5: 5 | J5: * | K5: * | M5: *
A6: Produkt | B6: AS-ECOshower pipe 15/1700mm | C6: 0.633 | D6: 0.6 | E6: 0.555 | F6: 0.51 | G6: =VLOOKUP(Calculation!C8,Data!B5:I14,8,0) -> 5 | I6: 6 | M6: *
B7: AS-ECOshower pipe 15/2015mm | C7: 0.67 | D7: 0.637 | E7: 0.6 | F7: 0.56 | I7: 7 | J7: * | M7: *
B8: AS-ECOshower pipe 20 | C8: 0.6 | D8: 0.57 | E8: 0.502 | F8: 0.47 | I8: 8 | J8: * | K8: * | M8: *
B9: AS-ECOshower drain 800 | C9: 0.395 | D9: 0.381 | E9: 0.364 | F9: 0.32 | I9: 9 | M9: *
B10: (není v nabídce) Duschrinne ECOshower 810 | C10: 0.419 | D10: 0.416 | E10: 0.397 | F10: 0.35 | I10: 10 | M10: *
B11: (není v nabídce) Duschrinne ECOshower 810H | C11: 0.574 | D11: 0.573 | E11: 0.564 | F11: 0.52 | I11: 11 | M11: *
B12: AS-ECOshower drain 900 | C12: 0.5 | D12: 0.491 | E12: 0.477 | F12: 0.43 | I12: 12 | J12: * | M12: *
B13: AS-ECOshower tray | C13: 0.506 | D13: 0.506 | E13: 0.483 | F13: 0.44 | I13: 13 | M13: *
B14: (není v nabídce) Duschsammler ECOshower | C14: 0.53 | D14: 0.51 | E14: 0.432 | F14: 0.423 | I14: 14 | J14: * | K14: *
B15: Nejnižší energetická třída | C15: 0.3 | D15: 0.3 | E15: 0.3 | F15: 0.3 | I15: 15
B17: Průběžný výstup
B18: =Calculation!C8 -> AS-ECOshower pipe 15/1500mm | C18: =VLOOKUP($B$18,$B$5:$F$15,2,0) -> 0.6 | D18: =VLOOKUP($B$18,$B$5:$F$15,3,0) -> 0.568 | E18: =VLOOKUP($B$18,$B$5:$F$15,4,0) -> 0.523 | F18: =VLOOKUP($B$18,$B$5:$F$15,5,0) -> 0.48
F19: =HLOOKUP(Calculation!C14,Data!C4:F18,15,0) -> 0.523
B21: Konstanty
B22: Měrná tepelná kapacita vody | C22: 1.163 | D22: Wh/kg
B23: CO2 Elektřiny | C23: 1.012 | D23: kg / kWh
B24: CO2 Zemního plynu | C24: 0.198 | D24: kg / kWh

Sheet Tabellen (hidden)
A1: Reduzierung Energieeinsparung gegenüber Balanciertem Betrieb
A3: Temperatur WEZ | B3: Tm | C3: KW | D3: Verhältnis KW:WW | E3: Anschluss Mischarmatur | F3: KW | G3: Verhältnis KW:WW | H3: Anschluss WEZ | J3: =Calculation!B18 -> Teplota ohřívané vody | K3: =Calculation!C18 -> 60
A4: =B4 -> 40 | B4: =Calculation!$C$10 -> 40 | C4: 27 | D4: =(A4-B4)/(B4-C4) -> 0 | E4: =1-(D4/(D4+1)) -> 1 | F4: 10 | G4: =(A4-B4)/(B4-F4) -> 0 | H4: =(G4/(G4+1)) -> 0 | J4: =Calculation!B10 -> Teplota sprchování | K4: =Calculation!C10 -> 40
A5: =A4+1 -> 41 | B5: =Calculation!$C$10 -> 40 | C5: 27 | D5: =(A5-B5)/(B5-C5) -> 0.07692307692 | E5: =1-(D5/(D5+1)) -> 0.9285714286 | F5: 10 | G5: 0.03333333333 | H5: =(G5/(G5+1)) -> 0.03225806452 | L5: Reduzierung Einsparung
A6: =A5+1 -> 42 | B6: =Calculation!$C$10 -> 40 | C6: 27 | D6: =(A6-B6)/(B6-C6) -> 0.1538461538 | E6: =1-(D6/(D6+1)) -> 0.8666666667 | F6: 10 | G6: 0.06666666667 | H6: =(G6/(G6+1)) -> 0.0625 | J6: Betriebsweise | K6: na zdroj tepla a sprch. baterii (vyvážený průtok) | L6: 0
A7: 43 | B7: =Calculation!$C$10 -> 40 | C7: 27 | D7: 0.2307692308 | E7: 0.8125 | F7: 10 | G7: 0.1 | H7: 0.09090909091 | K7: na sprchovou baterii | L7: =VLOOKUP($K$3,$A$3:$H$46,5,FALSE) -> 0.3939393939
A8: 44 | B8: =Calculation!$C$10 -> 40 | C8: 27 | D8: 0.3076923077 | E8: 0.7647058824 | F8: 10 | G8: 0.1333333333 | H8: 0.1176470588 | K8: na zdroj tepla | L8: =VLOOKUP($K$3,$A$3:$H$46,8,FALSE) -> 0.4
A9: 45 | B9: =Calculation!$C$10 -> 40 | C9: 27 | D9: 0.3846153846 | E9: 0.7222222222 | F9: 10 | G9: 0.1666666667 | H9: 0.1428571429
A10: 46 | B10: =Calculation!$C$10 -> 40 | C10: 27 | D10: 0.4615384615 | E10: 0.6842105263 | F10: 10 | G10: 0.2 | H10: 0.1666666667
A11: 47 | B11: =Calculation!$C$10 -> 40 | C11: 27 | D11: 0.5384615385 | E11: 0.65 | F11: 10 | G11: 0.2333333333 | H11: 0.1891891892
A12: 48 | B12: =Calculation!$C$10 -> 40 | C12: 27 | D12: 0.6153846154 | E12: 0.619047619 | F12: 10 | G12: 0.2666666667 | H12: 0.2105263158
A13: 49 | B13: =Calculation!$C$10 -> 40 | C13: 27 | D13: 0.6923076923 | E13: 0.5909090909 | F13: 10 | G13: 0.3 | H13: 0.2307692308
A14: 50 | B14: =Calculation!$C$10 -> 40 | C14: 27 | D14: 0.7692307692 | E14: 0.5652173913 | F14: 10 | G14: 0.3333333333 | H14: 0.25
A15: 51 | B15: =Calculation!$C$10 -> 40 | C15: 27 | D15: 0.8461538462 | E15: 0.5416666667 | F15: 10 | G15: 0.3666666667 | H15: 0.2682926829
A16: 52 | B16: =Calculation!$C$10 -> 40 | C16: 27 | D16: 0.9230769231 | E16: 0.52 | F16: 10 | G16: 0.4 | H16: 0.2857142857
A17: 53 | B17: =Calculation!$C$10 -> 40 | C17: 27 | D17: 1 | E17: 0.5 | F17: 10 | G17: 0.4333333333 | H17: 0.3023255814
A18: 54 | B18: =Calculation!$C$10 -> 40 | C18: 27 | D18: 1.076923077 | E18: 0.4814814815 | F18: 10 | G18: 0.4666666667 | H18: 0.3181818182
A19: 55 | B19: =Calculation!$C$10 -> 40 | C19: 27 | D19: 1.153846154 | E19: 0.4642857143 | F19: 10 | G19: 0.5 | H19: 0.3333333333
A20: 56 | B20: =Calculation!$C$10 -> 40 | C20: 27 | D20: 1.230769231 | E20: 0.4482758621 | F20: 10 | G20: 0.5333333333 | H20: 0.347826087
A21: 57 | B21: =Calculation!$C$10 -> 40 | C21: 27 | D21: 1.307692308 | E21: 0.4333333333 | F21: 10 | G21: 0.5666666667 | H21: 0.3617021277
A22: 58 | B22: =Calculation!$C$10 -> 40 | C22: 27 | D22: 1.384615385 | E22: 0.4193548387 | F22: 10 | G22: 0.6 | H22: 0.375
A23: 59 | B23: =Calculation!$C$10 -> 40 | C23: 27 | D23: 1.461538462 | E23: 0.40625 | F23: 10 | G23: 0.6333333333 | H23: 0.387755102
A24: 60 | B24: =Calculation!$C$10 -> 40 | C24: 27 | D24: 1.538461538 | E24: 0.3939393939 | F24: 10 | G24: 0.6666666667 | H24: 0.4
A25: 61 | B25: =Calculation!$C$10 -> 40 | C25: 27 | D25: 1.615384615 | E25: 0.3823529412 | F25: 10 | G25: 0.7 | H25: 0.4117647059
A26: 62 | B26: =Calculation!$C$10 -> 40 | C26: 27 | D26: 1.692307692 | E26: 0.3714285714 | F26: 10 | G26: 0.7333333333 | H26: 0.4230769231
A27: 63 | B27: =Calculation!$C$10 -> 40 | C27: 27 | D27: 1.769230769 | E27: 0.3611111111 | F27: 10 | G27: 0.7666666667 | H27: 0.4339622642
A28: 64 | B28: =Calculation!$C$10 -> 40 | C28: 27 | D28: 1.846153846 | E28: 0.3513513514 | F28: 10 | G28: 0.8 | H28: 0.4444444444
A29: 65 | B29: =Calculation!$C$10 -> 40 | C29: 27 | D29: 1.923076923 | E29: 0.3421052632 | F29: 10 | G29: 0.8333333333 | H29: 0.4545454545
A30: 66 | B30: =Calculation!$C$10 -> 40 | C30: 27 | D30: 2 | E30: 0.3333333333 | F30: 10 | G30: 0.8666666667 | H30: 0.4642857143
A31: 67 | B31: =Calculation!$C$10 -> 40 | C31: 27 | D31: 2.076923077 | E31: 0.325 | F31: 10 | G31: 0.9 | H31: 0.4736842105
A32: 68 | B32: =Calculation!$C$10 -> 40 | C32: 27 | D32: 2.153846154 | E32: 0.3170731707 | F32: 10 | G32: 0.9333333333 | H32: 0.4827586207
A33: 69 | B33: =Calculation!$C$10 -> 40 | C33: 27 | D33: 2.230769231 | E33: 0.3095238095 | F33: 10 | G33: 0.9666666667 | H33: 0.4915254237
A34: 70 | B34: =Calculation!$C$10 -> 40 | C34: 27 | D34: 2.307692308 | E34: 0.3023255814 | F34: 10 | G34: 1 | H34: 0.5
A35: 71 | B35: =Calculation!$C$10 -> 40 | C35: 27 | D35: 2.384615385 | E35: 0.2954545455 | F35: 10 | G35: 1.033333333 | H35: 0.5081967213
A36: 72 | B36: =Calculation!$C$10 -> 40 | C36: 27 | D36: 2.461538462 | E36: 0.2888888889 | F36: 10 | G36: 1.066666667 | H36: 0.5161290323
A37: 73 | B37: =Calculation!$C$10 -> 40 | C37: 27 | D37: 2.538461538 | E37: 0.2826086957 | F37: 10 | G37: 1.1 | H37: 0.5238095238
A38: 74 | B38: =Calculation!$C$10 -> 40 | C38: 27 | D38: 2.615384615 | E38: 0.2765957447 | F38: 10 | G38: 1.133333333 | H38: 0.53125
A39: 75 | B39: =Calculation!$C$10 -> 40 | C39: 27 | D39: 2.692307692 | E39: 0.2708333333 | F39: 10 | G39: 1.166666667 | H39: 0.5384615385
A40: 76 | B40: =Calculation!$C$10 -> 40 | C40: 27 | D40: 2.769230769 | E40: 0.2653061224 | F40: 10 | G40: 1.2 | H40: 0.5454545455
A41: 77 | B41: =Calculation!$C$10 -> 40 | C41: 27 | D41: 2.846153846 | E41: 0.26 | F41: 10 | G41: 1.233333333 | H41: 0.552238806
A42: 78 | B42: =Calculation!$C$10 -> 40 | C42: 27 | D42: 2.923076923 | E42: 0.2549019608 | F42: 10 | G42: 1.266666667 | H42: 0.5588235294
A43: 79 | B43: =Calculation!$C$10 -> 40 | C43: 27 | D43: 3 | E43: 0.25 | F43: 10 | G43: 1.3 | H43: 0.5652173913
A44: 80 | B44: =Calculation!$C$10 -> 40 | C44: 27 | D44: 3.076923077 | E44: 0.2452830189 | F44: 10 | G44: 1.333333333 | H44: 0.5714285714
A45: 81 | B45: =Calculation!$C$10 -> 40 | C45: 27 | D45: 3.153846154 | E45: 0.2407407407 | F45: 10 | G45: 1.366666667 | H45: 0.5774647887
A46: 82 | B46: =Calculation!$C$10 -> 40 | C46: 27 | D46: 3.230769231 | E46: 0.2363636364 | F46: 10 | G46: 1.4 | H46: 0.5833333333
A49: Anzahl Duschvorgänge Auswahlliste
A50: 1
A51: 2
A52: 3
A53: 4
A54: 5
A55: 6
A56: 7
A57: 8
A58: 9
A59: 10
